[Event "DVM U10 2024"]
[Site "Duesseldorf"]
[Date "2024.12.28"]
[Round "6"]
[White "White, William"]
[Black "Leppin, Mattis"]
[Result "1-0"]
[ECO "B12"]
[WhiteElo "1750"]
[BlackElo "1138"]
[Annotator "NA RC"]
[PlyCount "163"]
[EventDate "2024.12.23"]
[EventType "team-tourn"]
[EventRounds "7"]
[EventCountry "GER"]
[SourceTitle "playchess.com"]
[Source "ChessBase"]
[SourceQuality "1"]
[TimeControl "3300+5"]

1. e4 {[%emt 0:00:02]} c6 {[%emt 0:00:03]} 2. d4 {[%emt 0:00:03]} d5 {[%emt 0:00:06]} 3. e5 {[%emt 0:00:10]} Bf5 {[%emt 0:00:05]} 4. Bd3 {[%emt 0:00:09]} Bxd3 {[%emt 0:00:11]} 5. Qxd3 {[%emt 0:00:04]} e6 {[%emt 0:00:09]} 6. Nf3 {[%emt 0:00:33]} Nd7 {[%emt 0:00:14]} 7. Be3 {[%emt 0:02:35]} g6 {[%emt 0:00:49]} 8. Nbd2 {[%emt 0:00:53]} Bg7 {[%emt 0:00:13]} 9. O-O {[%emt 0:02:56]} Ne7 {[%emt 0:00:33]} 10. c4 {[%emt 0:01:33]} O-O {[%emt 0:00:16]} 11. cxd5 {[%emt 0:01:21]} Nxd5 {[%emt 0:00:36]} 12. Nc4 {[%emt 0:01:03]} f6 {[%emt 0:01:14]} 13. exf6 {[%emt 0:04:05]} N7xf6 {[%emt 0:00:47]} 14. Rfe1 {[%emt 0:00:45]} Re8 {[%emt 0:01:14]} 15. Re2 {[%emt 0:01:37]} Nd7 {[%emt 0:01:58]} 16. Bd2 {[%emt 0:01:08]} Qc7 {[%emt 0:00:49]} 17. Rae1 {[%emt 0:01:01]} Nf8 {[%emt 0:01:31]} 18. Ng5 {[%emt 0:02:17]} Qd7 {[%emt 0:00:30]} 19. Na5 {[%emt 0:02:30]} b6 {[%emt 0:00:56]} 20. Nb3 {[%emt 0:00:13]} Re7 {[%emt 0:00:39]} 21. Qh3 {[%emt 0:01:12]} Rae8 {[%emt 0:01:01]} 22. Nf3 {[%emt 0:02:15]} Bf6 {[%emt 0:05:40]} 23. Qg3 {[%emt 0:01:22]} Kg7 {[%emt 0:10:23]} 24. Bg5 {[%emt 0:00:59]} Bxg5 {[%emt 0:01:39]} 25. Nxg5 {[%emt 0:00:42]} a5 {[%emt 0:01:48]} 26. Qe5+ {[%emt 0:00:31]} Kg8 {[%emt 0:01:42]} 27. a3 {[%emt 0:01:41]} Qc7 {[%emt 0:00:45]} 28. Qxc7 {[%emt 0:01:20]} Nxc7 {[%emt 0:00:21]} 29. Nd2 {[%emt 0:00:48]} Nd5 {[%emt 0:00:26]} 30. Nc4 {[%emt 0:00:39]} Nc7 {[%emt 0:01:54]} 31. Nxb6 {[%emt 0:01:38]} h6 {[%emt 0:00:27]} 32. Nf3 {[%emt 0:00:18]} Kg7 {[%emt 0:01:29]} 33. Ne5 {[%emt 0:00:30]} Nd5 {[%emt 0:03:39]} 34. Nxd5 {[%emt 0:01:17]} exd5 {[%emt 0:00:23]} 35. Rc2 {[%emt 0:01:15]} Nd7 {[%emt 0:01:09]} 36. f4 {[%emt 0:00:33]} Nxe5 {[%emt 0:02:03]} 37. fxe5 {[%emt 0:00:12]} Rc8 {[%emt 0:00:24]} 38. Rec1 {[%emt 0:00:04]} Rec7 {[%emt 0:00:17]} 39. Rc5 {[%emt 0:00:13]} Rb7 {[%emt 0:01:03]} 40. Rxd5 {[%emt 0:01:26]} cxd5 {[%emt 0:00:18]} 41. Rxc8 {[%emt 0:00:07]} Rxb2 {[%emt 0:00:11]} 42. Rc5 {[%emt 0:00:09]} Rb1+ {[%emt 0:00:57]} 43. Kf2 {[%emt 0:00:11]} Rb2+ {[%emt 0:00:24]} 44. Ke1 {[%emt 0:01:59]} Rb1+ {[%emt 0:00:30]} 45. Kd2 {[%emt 0:00:15]} Rb2+ {[%emt 0:00:12]} 46. Kc3 {[%emt 0:00:35]} Rxg2 {[%emt 0:00:21]} 47. Rxa5 {[%emt 0:00:19]} Rxh2 {[%emt 0:00:00]} 48. Rxd5 {[%emt 0:00:05]} Rh3+ {[%emt 0:00:01]} 49. Kb4 {[%emt 0:00:06]} g5 {[%emt 0:00:08]} 50. Rc5 {[%emt 0:00:40]} g4 {[%emt 0:00:05]} 51. a4 {[%emt 0:01:20]} g3 {[%emt 0:00:07]} 52. Rc1 {[%emt 0:00:04]} Rh4 {[%emt 0:00:29]} 53. Kc5 {[%emt 0:00:56]} g2 {[%emt 0:00:28]} 54. Rg1 {[%emt 0:00:07]} Rg4 {[%emt 0:00:09]} 55. a5 {[%emt 0:00:06]} Rg6 {[%emt 0:00:19]} 56. Kb5 {[%emt 0:00:31]} h5 {[%emt 0:00:06]} 57. a6 {[%emt 0:00:11]} Kh8 {[%emt 0:00:28]} 58. a7 {[%emt 0:00:07]} Rg8 {[%emt 0:00:05]} 59. Rxg2 {[%emt 0:00:32]} Rxg2 {[%emt 0:00:06]} 60. a8=Q+ {[%emt 0:00:10]} Rg8 {[%emt 0:00:07]} 61. Qh1 {[%emt 0:00:09]} Rb8+ {[%emt 0:00:17]} 62. Kc4 {[%emt 0:00:11]} Rc8+ {[%emt 0:00:02]} 63. Kd3 {[%emt 0:00:09]} Kg7 {[%emt 0:00:08]} 64. Qxh5 {[%emt 0:00:06]} Rh8 {[%emt 0:00:04]} 65. Qg5+ {[%emt 0:00:06]} Kf8 {[%emt 0:00:12]} 66. Qf6+ {[%emt 0:00:06]} Kg8 {[%emt 0:00:01]} 67. e6 {[%emt 0:00:13]} Rh6 {[%emt 0:00:14]} 68. Qf7+ {[%emt 0:00:33]} Kh8 {[%emt 0:00:06]} 69. e7 {[%emt 0:00:06]} Rh3+ {[%emt 0:00:16]} 70. Ke4 {[%emt 0:00:11]} Rh4+ {[%emt 0:00:01]} 71. Kf5 {[%emt 0:00:19]} Rf4+ {[%emt 0:00:07]} 72. Kg6 {[%emt 0:00:22]} Rg4+ {[%emt 0:00:05]} 73. Kf5 {[%emt 0:00:30]} Rf4+ {[%emt 0:00:03]} 74. Ke5 {[%emt 0:00:18]} Re4+ {[%emt 0:00:04]} 75. Kd6 {[%emt 0:00:21]} Rxd4+ {[%emt 0:00:32]} 76. Kc7 {[%emt 0:00:10]} Rd7+ {[%emt 0:00:04]} 77. Kc8 {[%emt 0:00:27]} Rc7+ {[%emt 0:00:04]} 78. Kb8 {[%emt 0:00:10]} Rc8+ {[%emt 0:00:02]} 79. Kb7 {[%emt 0:00:07]} Rb8+ {[%emt 0:00:01]} 80. Kc6 {[%emt 0:00:02]} Rc8+ {[%emt 0:00:01]} 81. Kd5 {[%emt 0:00:00]} Rc5+ {[%emt 0:00:02]} 82. Kd4 {[%emt 0:00:09]} 1-0

[Event "DVM U10 2024"]
[Site "Duesseldorf"]
[Date "2024.12.28"]
[Round "6"]
[White "Barsov, Mikhail"]
[Black "Jozsa, Lev"]
[Result "1-0"]
[ECO "D30"]
[WhiteElo "1737"]
[BlackElo "1617"]
[Annotator "NA RC"]
[PlyCount "75"]
[EventDate "2024.12.23"]
[EventType "team-tourn"]
[EventRounds "7"]
[EventCountry "GER"]
[SourceTitle "playchess.com"]
[Source "ChessBase"]
[SourceQuality "1"]
[TimeControl "3300+5"]

1. c4 {[%emt 0:00:14]} e6 {[%emt 0:00:39]} 2. g3 {[%emt 0:00:04]} d5 {[%emt 0:00:12]} 3. Bg2 {[%emt 0:00:04]} Nf6 {[%emt 0:00:21]} 4. Nf3 {[%emt 0:00:04]} c5 {[%emt 0:00:26]} 5. cxd5 {[%emt 0:00:44]} exd5 {[%emt 0:00:24]} 6. d4 {[%emt 0:01:04]} Nc6 {[%emt 0:01:47]} 7. O-O {[%emt 0:00:31]} Bf5 {[%emt 0:02:40]} 8. Nc3 {[%emt 0:01:54]} Ne4 {[%emt 0:07:38]} 9. Be3 {[%emt 0:07:30]} Nxc3 {[%emt 0:09:21]} 10. bxc3 {[%emt 0:00:26]} b6 {[%emt 0:02:19]} 11. Bf4 {[%emt 0:05:39]} Be4 {[%emt 0:04:51]} 12. Qa4 {[%emt 0:06:28]} Qd7 {[%emt 0:02:14]} 13. Bh3 {[%emt 0:06:51]} f5 {[%emt 0:01:21]} 14. Ng5 {[%emt 0:04:19]} h6 {[%emt 0:02:42]} 15. Nxe4 {[%emt 0:00:13]} dxe4 {[%emt 0:00:15]} 16. Bxf5 {[%emt 0:03:32]} Qb7 {[%emt 0:00:41]} 17. Bxe4 {[%emt 0:00:51]} b5 {[%emt 0:00:27]} 18. Qc2 {[%emt 0:00:23]} g5 {[%emt 0:03:31]} 19. Be5 {[%emt 0:00:36]} Rg8 {[%emt 0:00:39]} 20. Bd5 {[%emt 0:00:28]} Nxd4 {[%emt 0:01:02]} 21. Bxb7 {[%emt 0:00:29]} Nxc2 {[%emt 0:00:07]} 22. Bxa8 {[%emt 0:00:05]} Nxa1 {[%emt 0:00:08]} 23. Rxa1 {[%emt 0:00:19]} Rg6 {[%emt 0:00:26]} 24. Bd5 {[%emt 0:02:19]} Bd6 {[%emt 0:01:02]} 25. Bc6+ {[%emt 0:01:24]} Ke7 {[%emt 0:00:43]} 26. Bxd6+ {[%emt 0:00:07]} Rxd6 {[%emt 0:00:04]} 27. Bxb5 {[%emt 0:00:11]} Rd2 {[%emt 0:00:09]} 28. Bd3 {[%emt 0:00:47]} Kd6 {[%emt 0:00:20]} 29. Kf1 {[%emt 0:01:13]} Kd5 {[%emt 0:00:43]} 30. Ke1 {[%emt 0:00:30]} Rb2 {[%emt 0:00:06]} 31. c4+ {[%emt 0:00:26]} Kd4 {[%emt 0:00:14]} 32. Kd1 {[%emt 0:00:35]} Rb6 {[%emt 0:00:42]} 33. Kc2 {[%emt 0:01:08]} Rf6 {[%emt 0:00:57]} 34. e3+ {[%emt 0:01:46]} Ke5 {[%emt 0:00:11]} 35. f4+ {[%emt 0:00:06]} gxf4 {[%emt 0:00:14]} 36. exf4+ {[%emt 0:00:07]} Kd4 {[%emt 0:00:09]} 37. Re1 {[%emt 0:00:38]} Rf5 {[%emt 0:00:19]} 38. Re4# {[%emt 0:00:12]} 1-0

[Event "DVM U10 2024"]
[Site "Duesseldorf"]
[Date "2024.12.28"]
[Round "6"]
[White "Sauer, Ben"]
[Black "Glaser-Gallion, Ludwig"]
[Result "1-0"]
[ECO "B13"]
[WhiteElo "1645"]
[BlackElo "1358"]
[Annotator "NA RC"]
[PlyCount "47"]
[EventDate "2024.12.23"]
[EventType "team-tourn"]
[EventRounds "7"]
[EventCountry "GER"]
[SourceTitle "playchess.com"]
[Source "ChessBase"]
[SourceQuality "1"]
[TimeControl "3300+5"]

1. e4 {[%emt 0:00:01]} c6 {[%emt 0:00:10]} 2. d4 {[%emt 0:00:10]} d5 {[%emt 0:00:05]} 3. exd5 {[%emt 0:00:12]} cxd5 {[%emt 0:00:06]} 4. Bd3 {[%emt 0:00:40]} Nc6 {[%emt 0:00:09]} 5. c3 {[%emt 0:00:10]} Nf6 {[%emt 0:00:07]} 6. Bf4 {[%emt 0:00:28]} Bg4 {[%emt 0:01:11]} 7. Qb3 {[%emt 0:00:46]} Qd7 {[%emt 0:01:20]} 8. Nd2 {[%emt 0:01:14]} e6 {[%emt 0:00:25]} 9. Ngf3 {[%emt 0:01:42]} a6 {[%emt 0:00:37]} 10. h3 {[%emt 0:01:23]} Bxf3 {[%emt 0:00:23]} 11. Nxf3 {[%emt 0:00:07]} Be7 {[%emt 0:00:24]} 12. O-O {[%emt 0:00:26]} O-O {[%emt 0:00:16]} 13. Ne5 {[%emt 0:01:02]} Nxe5 {[%emt 0:01:09]} 14. dxe5 {[%emt 0:00:22]} Ne8 {[%emt 0:01:10]} 15. Qc2 {[%emt 0:02:32]} h6 {[%emt 0:00:55]} 16. Qe2 {[%emt 0:03:03]} Nc7 {[%emt 0:03:41]} 17. Qg4 {[%emt 0:02:40]} Kh8 {[%emt 0:00:22]} 18. Qh5 {[%emt 0:01:01]} g6 {[%emt 0:02:13]} 19. Qxh6+ {[%emt 0:05:51]} Kg8 {[%emt 0:01:37]} 20. h4 {[%emt 0:03:12]} d4 {[%emt 0:02:53]} 21. h5 {[%emt 0:05:53]} dxc3 {[%emt 0:00:10]} 22. hxg6 {[%emt 0:00:16]} fxg6 {[%emt 0:00:28]} 23. Qxg6+ {[%emt 0:00:07]} Kh8 {[%emt 0:00:13]} 24. Qh7# {[%emt 0:00:07]} 1-0

[Event "DVM U10 2024"]
[Site "Duesseldorf"]
[Date "2024.12.28"]
[Round "6"]
[White "Vignesh Bama, Dev"]
[Black "Jiang, Alexander D"]
[Result "1-0"]
[ECO "C00"]
[WhiteElo "1633"]
[BlackElo "1958"]
[Annotator "NA RC"]
[PlyCount "49"]
[EventDate "2024.12.23"]
[EventType "team-tourn"]
[EventRounds "7"]
[EventCountry "GER"]
[SourceTitle "playchess.com"]
[Source "ChessBase"]
[SourceQuality "1"]
[TimeControl "3300+5"]

1. e4 {[%emt 0:00:02]} e6 {[%emt 0:00:07]} 2. c4 {[%emt 0:00:05]} d5 {[%emt 0:00:06]} 3. cxd5 {[%emt 0:00:05]} exd5 4. exd5 {[%emt 0:00:14]} Qxd5 {[%emt 0:00:10]} 5. Nc3 {[%emt 0:00:03]} Qf5 {[%emt 0:00:57]} 6. d4 {[%emt 0:00:25]} c5 {[%emt 0:01:02]} 7. Bb5+ {[%emt 0:00:12]} Bd7 {[%emt 0:00:48]} 8. Nf3 {[%emt 0:00:13]} Qh5 {[%emt 0:00:55]} 9. O-O {[%emt 0:00:33]} Bd6 {[%emt 0:00:39]} 10. Re1+ {[%emt 0:00:57]} Ne7 {[%emt 0:00:31]} 11. Bxd7+ {[%emt 0:00:18]} Nxd7 {[%emt 0:00:10]} 12. Nb5 {[%emt 0:00:05]} Qg6 {[%emt 0:01:18]} 13. Bg5 {[%emt 0:00:24]} h6 {[%emt 0:04:30]} 14. Nxd6+ {[%emt 0:00:11]} Qxd6 {[%emt 0:01:02]} 15. Bxe7 {[%emt 0:00:18]} Qg6 {[%emt 0:01:48]} 16. Bxc5+ {[%emt 0:00:21]} Kd8 {[%emt 0:00:12]} 17. Be7+ {[%emt 0:00:12]} Ke8 {[%emt 0:00:52]} 18. Ba3+ {[%emt 0:00:26]} Kd8 {[%emt 0:00:09]} 19. Qb3 {[%emt 0:00:50]} b6 {[%emt 0:00:53]} 20. Qd5 {[%emt 0:00:27]} Rc8 {[%emt 0:02:02]} 21. Qb7 {[%emt 0:00:25]} Qc6 {[%emt 0:03:30]} 22. Qxc6 {[%emt 0:00:41]} Rxc6 {[%emt 0:00:16]} 23. Rac1 Rg6 {[%emt 0:02:06]} 24. Be7+ {[%emt 0:00:14]} Ke8 {[%emt 0:00:42]} 25. Rc8# {[%emt 0:00:33]} 1-0

[Event "DVM U10 2024"]
[Site "Duesseldorf"]
[Date "2024.12.28"]
[Round "6"]
[White "Bashirova, Sona"]
[Black "Kinateder, Vitus"]
[Result "0-1"]
[ECO "C30"]
[WhiteElo "1626"]
[BlackElo "1605"]
[Annotator "NA RC"]
[PlyCount "82"]
[EventDate "2024.12.23"]
[EventType "team-tourn"]
[EventRounds "7"]
[EventCountry "GER"]
[SourceTitle "playchess.com"]
[Source "ChessBase"]
[SourceQuality "1"]
[TimeControl "3300+5"]

1. e4 {[%emt 0:00:02]} e5 {[%emt 0:00:04]} 2. Nc3 {[%emt 0:00:05]} Nf6 {[%emt 0:00:08]} 3. f4 {[%emt 0:00:09]} d6 {[%emt 0:00:15]} 4. Nf3 {[%emt 0:00:14]} Nc6 {[%emt 0:00:34]} 5. Bb5 {[%emt 0:02:08]} Qe7 {[%emt 0:00:43]} 6. d3 {[%emt 0:00:07]} a6 {[%emt 0:00:10]} 7. Ba4 {[%emt 0:01:57]} b5 {[%emt 0:02:21]} 8. Bb3 {[%emt 0:00:12]} Bg4 {[%emt 0:00:13]} 9. h3 {[%emt 0:00:46]} Bxf3 {[%emt 0:00:14]} 10. Qxf3 {[%emt 0:00:10]} Nd4 {[%emt 0:00:17]} 11. Qd1 {[%emt 0:00:38]} Nd7 {[%emt 0:03:43]} 12. O-O {[%emt 0:00:19]} Qh4 {[%emt 0:00:29]} 13. fxe5 {[%emt 0:00:39]} Nxe5 {[%emt 0:00:17]} 14. Bf4 {[%emt 0:01:17]} Nxb3 {[%emt 0:03:21]} 15. axb3 {[%emt 0:01:42]} c6 {[%emt 0:04:17]} 16. Bxe5 {[%emt 0:00:17]} dxe5 {[%emt 0:00:54]} 17. Qf3 {[%emt 0:00:09]} Qe7 {[%emt 0:04:01]} 18. Ne2 {[%emt 0:04:24]} Qc7 {[%emt 0:00:18]} 19. Ng3 {[%emt 0:00:31]} Bc5+ {[%emt 0:01:05]} 20. Kh1 {[%emt 0:00:23]} O-O {[%emt 0:02:42]} 21. Nf5 {[%emt 0:00:44]} Bb6 {[%emt 0:01:35]} 22. Qg3 {[%emt 0:00:35]} g6 {[%emt 0:01:30]} 23. Nh6+ {[%emt 0:00:14]} Kg7 {[%emt 0:00:17]} 24. Ng4 {[%emt 0:00:07]} h5 {[%emt 0:00:49]} 25. Qxe5+ {[%emt 0:01:42]} Qxe5 {[%emt 0:00:23]} 26. Nxe5 {[%emt 0:00:27]} Bd4 {[%emt 0:01:25]} 27. Nxc6 {[%emt 0:00:18]} Bxb2 {[%emt 0:00:08]} 28. Ra2 {[%emt 0:00:48]} Bc3 {[%emt 0:01:00]} 29. Ne7 {[%emt 0:00:48]} Ra7 {[%emt 0:02:03]} 30. Nd5 {[%emt 0:00:22]} Bd4 {[%emt 0:01:07]} 31. c3 {[%emt 0:00:45]} Bc5 {[%emt 0:01:19]} 32. Rfa1 {[%emt 0:00:34]} Rfa8 {[%emt 0:01:30]} 33. d4 {[%emt 0:00:32]} Bd6 {[%emt 0:00:46]} 34. Nb6 {[%emt 0:02:12]} Re8 {[%emt 0:00:25]} 35. e5 {[%emt 0:00:15]} Be7 {[%emt 0:00:22]} 36. Rxa6 {[%emt 0:00:18]} Rxa6 {[%emt 0:00:08]} 37. Rxa6 {[%emt 0:00:14]} Bh4 {[%emt 0:00:09]} 38. Ra8 {[%emt 0:01:22]} Re6 {[%emt 0:00:15]} 39. Rb8 {[%emt 0:00:32]} Bg3 {[%emt 0:00:06]} 40. Nd7 {[%emt 0:01:13]} Ra6 {[%emt 0:00:50]} 41. Kg1 {[%emt 0:04:02]} Ra1# {[%emt 0:00:24]} 0-1

[Event "DVM U10 2024"]
[Site "Duesseldorf"]
[Date "2024.12.28"]
[Round "6"]
[White "Zielke, Mika"]
[Black "El-Issa, Erik"]
[Result "1-0"]
[ECO "C55"]
[WhiteElo "1623"]
[BlackElo "1530"]
[Annotator "NA RC"]
[PlyCount "129"]
[EventDate "2024.12.23"]
[EventType "team-tourn"]
[EventRounds "7"]
[EventCountry "GER"]
[SourceTitle "playchess.com"]
[Source "ChessBase"]
[SourceQuality "1"]
[TimeControl "3300+5"]

1. e4 {[%emt 0:00:02]} e5 {[%emt 0:00:07]} 2. Nf3 {[%emt 0:00:06]} Nc6 {[%emt 0:00:06]} 3. Bc4 {[%emt 0:00:11]} Be7 {[%emt 0:00:11]} 4. d3 {[%emt 0:00:33]} Nf6 {[%emt 0:00:30]} 5. Be3 {[%emt 0:00:42]} O-O {[%emt 0:00:11]} 6. O-O {[%emt 0:00:19]} d6 {[%emt 0:00:36]} 7. Nbd2 {[%emt 0:00:24]} d5 {[%emt 0:00:36]} 8. exd5 {[%emt 0:00:39]} Nxd5 {[%emt 0:00:15]} 9. Re1 {[%emt 0:00:53]} Be6 {[%emt 0:00:26]} 10. Bb3 {[%emt 0:01:27]} a5 {[%emt 0:01:39]} 11. a3 {[%emt 0:01:26]} f5 {[%emt 0:01:23]} 12. Nc4 {[%emt 0:01:59]} Bf6 {[%emt 0:00:29]} 13. Bd2 {[%emt 0:01:08]} e4 {[%emt 0:04:27]} 14. dxe4 {[%emt 0:01:12]} fxe4 {[%emt 0:00:13]} 15. Rxe4 {[%emt 0:00:50]} Bf5 {[%emt 0:01:12]} 16. Re1 {[%emt 0:00:33]} Kh8 {[%emt 0:01:03]} 17. c3 {[%emt 0:01:14]} Bg4 {[%emt 0:02:48]} 18. Ne3 {[%emt 0:01:44]} Nxe3 {[%emt 0:01:47]} 19. Bxe3 {[%emt 0:00:17]} Ne5 {[%emt 0:01:19]} 20. Qxd8 {[%emt 0:00:32]} Raxd8 {[%emt 0:00:57]} 21. Nxe5 {[%emt 0:00:19]} Bxe5 {[%emt 0:00:36]} 22. f3 {[%emt 0:01:40]} Bf5 {[%emt 0:00:33]} 23. Bc5 {[%emt 0:01:03]} Bd6 {[%emt 0:01:25]} 24. Bxd6 {[%emt 0:00:14]} Rxd6 {[%emt 0:00:25]} 25. Rad1 {[%emt 0:00:18]} Rfd8 {[%emt 0:00:58]} 26. Rxd6 {[%emt 0:00:38]} cxd6 {[%emt 0:00:14]} 27. Re7 {[%emt 0:00:26]} Bd7 {[%emt 0:00:22]} 28. Be6 {[%emt 0:01:12]} Bxe6 {[%emt 0:00:39]} 29. Rxe6 {[%emt 0:00:11]} b5 {[%emt 0:01:09]} 30. Re7 {[%emt 0:00:28]} Kg8 {[%emt 0:00:24]} 31. Rb7 {[%emt 0:00:10]} b4 {[%emt 0:00:05]} 32. cxb4 {[%emt 0:00:15]} axb4 {[%emt 0:00:12]} 33. Rxb4 {[%emt 0:00:12]} d5 {[%emt 0:00:27]} 34. Rd4 {[%emt 0:00:07]} Kf7 {[%emt 0:00:09]} 35. Kf2 {[%emt 0:00:08]} Ke6 {[%emt 0:00:14]} 36. Ke3 {[%emt 0:00:06]} Ke5 {[%emt 0:00:13]} 37. a4 {[%emt 0:00:38]} Rb8 {[%emt 0:00:59]} 38. b4 {[%emt 0:00:14]} g5 {[%emt 0:00:39]} 39. a5 {[%emt 0:00:32]} h5 {[%emt 0:00:16]} 40. g3 {[%emt 0:00:30]} Rc8 {[%emt 0:00:31]} 41. f4+ {[%emt 0:00:16]} gxf4+ {[%emt 0:00:20]} 42. gxf4+ {[%emt 0:00:02]} Ke6 {[%emt 0:00:15]} 43. Kd2 {[%emt 0:00:15]} Rb8 {[%emt 0:01:18]} 44. Kc3 {[%emt 0:00:36]} Rc8+ {[%emt 0:00:26]} 45. Kb3 {[%emt 0:00:39]} Rc1 {[%emt 0:00:50]} 46. b5 {[%emt 0:00:33]} Rb1+ {[%emt 0:00:14]} 47. Ka4 {[%emt 0:00:09]} Ra1+ {[%emt 0:00:09]} 48. Kb4 {[%emt 0:00:07]} Kd6 {[%emt 0:00:58]} 49. a6 {[%emt 0:00:55]} Ra2 {[%emt 0:01:13]} 50. Rd3 {[%emt 0:00:41]} h4 {[%emt 0:00:26]} 51. h3 {[%emt 0:00:29]} Ra1 {[%emt 0:00:47]} 52. Ra3 {[%emt 0:00:29]} Rb1+ {[%emt 0:00:35]} 53. Kc3 {[%emt 0:00:29]} Rc1+ {[%emt 0:00:32]} 54. Kb2 {[%emt 0:00:27]} Rc8 {[%emt 0:00:13]} 55. b6 {[%emt 0:00:28]} d4 {[%emt 0:00:14]} 56. b7 {[%emt 0:00:17]} Rb8 {[%emt 0:00:19]} 57. a7 {[%emt 0:00:14]} Rxb7+ {[%emt 0:00:13]} 58. Kc2 {[%emt 0:00:09]} Rc7+ {[%emt 0:00:19]} 59. Kd3 {[%emt 0:00:11]} Rxa7 {[%emt 0:00:23]} 60. Rxa7 {[%emt 0:00:07]} Ke6 {[%emt 0:00:06]} 61. Kxd4 {[%emt 0:00:08]} Kf5 {[%emt 0:00:19]} 62. Rh7 {[%emt 0:00:19]} Kxf4 {[%emt 0:00:32]} 63. Rxh4+ {[%emt 0:00:31]} Kg5 {[%emt 0:00:14]} 64. Rh8 {[%emt 0:00:08]} Kg6 {[%emt 0:00:17]} 65. h4 {[%emt 0:08:06]} 1-0

[Event "DVM U10 2024"]
[Site "Duesseldorf"]
[Date "2024.12.28"]
[Round "6"]
[White "Roessling, Johannes"]
[Black "Nune, Likhith Siddharth"]
[Result "0-1"]
[ECO "C45"]
[WhiteElo "1618"]
[BlackElo "1533"]
[Annotator "NA RC"]
[PlyCount "70"]
[EventDate "2024.12.23"]
[EventType "team-tourn"]
[EventRounds "7"]
[EventCountry "GER"]
[SourceTitle "playchess.com"]
[Source "ChessBase"]
[SourceQuality "1"]
[TimeControl "3300+5"]

1. e4 {[%emt 0:00:02]} e5 {[%emt 0:00:07]} 2. Nf3 {[%emt 0:00:07]} Nc6 {[%emt 0:00:32]} 3. d4 {[%emt 0:00:06]} exd4 {[%emt 0:00:08]} 4. Nxd4 {[%emt 0:00:06]} Bc5 {[%emt 0:00:16]} 5. Be3 {[%emt 0:00:06]} Qf6 {[%emt 0:00:07]} 6. c3 {[%emt 0:00:06]} Nge7 {[%emt 0:00:13]} 7. Bc4 {[%emt 0:00:17]} d6 {[%emt 0:00:19]} 8. O-O {[%emt 0:00:14]} Qg6 {[%emt 0:00:30]} 9. Qf3 {[%emt 0:04:05]} Ne5 {[%emt 0:00:40]} 10. Bxf7+ {[%emt 0:12:40]} Qxf7 {[%emt 0:01:06]} 11. Qe2 {[%emt 0:00:25]} Qg6 {[%emt 0:02:37]} 12. Nd2 {[%emt 0:01:34]} Bh3 {[%emt 0:00:47]} 13. f4 {[%emt 0:00:28]} Bg4 {[%emt 0:01:44]} 14. Qb5+ {[%emt 0:06:30]} N5c6 {[%emt 0:02:20]} 15. Rae1 {[%emt 0:11:41]} Bxd4 {[%emt 0:02:32]} 16. cxd4 {[%emt 0:00:59]} Bd7 {[%emt 0:03:45]} 17. d5 {[%emt 0:01:05]} a6 {[%emt 0:02:35]} 18. Qxb7 {[%emt 0:01:02]} Rb8 {[%emt 0:01:08]} 19. Qxc7 {[%emt 0:01:20]} Rc8 {[%emt 0:00:52]} 20. Qb6 {[%emt 0:00:21]} Nb8 {[%emt 0:05:24]} 21. f5 {[%emt 0:03:18]} Qf7 {[%emt 0:02:15]} 22. Qxd6 {[%emt 0:00:38]} Qf6 {[%emt 0:01:51]} 23. Qb4 {[%emt 0:02:38]} O-O {[%emt 0:01:55]} 24. Bd4 {[%emt 0:00:29]} Qf7 {[%emt 0:03:10]} 25. Rf3 {[%emt 0:01:29]} Nxd5 {[%emt 0:02:13]} 26. exd5 {[%emt 0:00:54]} Qxd5 {[%emt 0:00:44]} 27. Rg3 {[%emt 0:00:43]} Rf7 {[%emt 0:01:32]} 28. Qb3 {[%emt 0:00:36]} Qxd4+ {[%emt 0:01:13]} 29. Qe3 {[%emt 0:00:14]} Qxe3+ {[%emt 0:00:37]} 30. Rgxe3 {[%emt 0:00:15]} Rxf5 {[%emt 0:00:49]} 31. Rd3 {[%emt 0:01:21]} Bb5 {[%emt 0:00:49]} 32. Rd6 {[%emt 0:00:42]} Rf6 {[%emt 0:00:50]} 33. Rd5 {[%emt 0:00:20]} Rg6 {[%emt 0:00:34]} 34. Rd4 {[%emt 0:00:43]} Nc6 {[%emt 0:01:14]} 35. Rf4 {[%emt 0:00:26]} Ra8 {[%emt 0:00:40]} 0-1

[Event "DVM U10 2024"]
[Site "Duesseldorf"]
[Date "2024.12.28"]
[Round "6"]
[White "Thirumal, Shravan"]
[Black "Hu, Yinuo"]
[Result "1-0"]
[ECO "B72"]
[WhiteElo "1614"]
[BlackElo "1495"]
[Annotator "NA RC"]
[PlyCount "38"]
[EventDate "2024.12.23"]
[EventType "team-tourn"]
[EventRounds "7"]
[EventCountry "GER"]
[SourceTitle "playchess.com"]
[Source "ChessBase"]
[SourceQuality "1"]
[TimeControl "3300+5"]

1. e4 {[%emt 0:00:29]} c5 {[%emt 0:00:07]} 2. Nf3 {[%emt 0:01:21]} d6 {[%emt 0:00:22]} 3. d4 {[%emt 0:01:59]} cxd4 {[%emt 0:00:17]} 4. Nxd4 {[%emt 0:00:10]} Nf6 {[%emt 0:00:19]} 5. Nc3 {[%emt 0:00:07]} g6 {[%emt 0:00:21]} 6. Be3 {[%emt 0:00:11]} Bg7 {[%emt 0:00:28]} 7. Bc4 {[%emt 0:01:31]} O-O {[%emt 0:00:20]} 8. f4 {[%emt 0:00:07]} Nbd7 {[%emt 0:02:06]} 9. Qd2 {[%emt 0:00:26]} b6 {[%emt 0:00:18]} 10. Nc6 {[%emt 0:00:30]} Qe8 {[%emt 0:01:19]} 11. e5 {[%emt 0:03:33]} Ng4 {[%emt 0:01:10]} 12. e6 {[%emt 0:01:34]} Nxe3 {[%emt 0:04:07]} 13. exf7+ {[%emt 0:00:42]} Rxf7 {[%emt 0:00:25]} 14. Bxf7+ {[%emt 0:01:23]} Qxf7 {[%emt 0:00:39]} 15. Qxe3 {[%emt 0:00:25]} Bf6 {[%emt 0:00:41]} 16. O-O {[%emt 0:01:23]} Bb7 {[%emt 0:00:18]} 17. Qf3 {[%emt 0:01:06]} Nb8 {[%emt 0:03:36]} 18. Nd8 {[%emt 0:01:19]} Bxf3 {[%emt 0:00:26]} 19. Nxf7 {[%emt 0:00:38]} Kxf7 {[%emt 0:01:16]} 1-0